fUST/lending_fUST_20260129
["ID","MTS","AMOUNT","RATE_DAILY","PERIOD"]
[403901408,1769644238973,-300.0,0.00011626,2]
[403901409,1769644238982,-300.0,0.00011626,2]
[403901410,1769644238992,-300.0,0.00011626,2]
[403901411,1769644239002,-300.0,0.00011626,2]
[403901412,1769644239011,-300.0,0.00011626,2]
[403901413,1769644239020,-300.0,0.00011626,2]
[403901414,1769644239030,-300.0,0.00011626,2]
[403901415,1769644239039,-300.0,0.00011626,2]
[403901416,1769644239048,-600.0,0.00011626,2]
[403901417,1769644239058,-210.63538977,0.00012192,2]
[403901418,1769644239068,-420.0,0.00012413,2]
[403901419,1769644239078,-720.0,0.00012789,2]
[403901420,1769644239087,-2736.94264847,0.00013,2]
[403901421,1769644239097,-401.22012195,0.00013167,2]
[403901422,1769644239107,-500.0,0.00013273,2]
[403901423,1769644239117,-173.88204571,0.00013273,2]
[403901424,1769644239126,-504.66008898,0.00013273,2]
[403901425,1769644239135,-500.0,0.00013273,2]
[403901426,1769644239145,-500.0,0.00013273,2]
[403901427,1769644239154,-500.0,0.00013273,2]
[403901428,1769644239164,-500.0,0.00013273,2]
[403901429,1769644239173,-587.0,0.00013636,2]
[403901430,1769644239183,-300.0,0.00013673,2]
[403901431,1769644239191,-500.0,0.00013698,2]
[403901432,1769644239200,-1000.0,0.00013699,2]
[403901433,1769644239210,-500.0,0.00013699,2]
[403901434,1769644239219,-500.0,0.00013699,2]
[403901435,1769644239228,-261.05286874,0.00013699,2]
[403901436,1769644239237,-500.0,0.00013699,2]
[403901437,1769644239246,-500.0,0.00013699,2]
[403901438,1769644239255,-452.20066244,0.00013699,2]
[403901439,1769644239263,-588.86546232,0.00013821,2]
[403901440,1769644239272,-1000.0,0.00013821,2]
[403901441,1769644239281,-1000.0,0.00013821,2]
[403901442,1769644239290,-500.0,0.00013821,2]
[403901443,1769644239300,-1000.0,0.00013821,2]
[403901444,1769644239309,-3816.2657005,0.00013928,2]
[403901445,1769644239319,-1000.0,0.00013973,2]
[403901446,1769644239328,-864.0,0.00014067,2]
[403901447,1769644239337,-666.58,0.00014076,2]
[403901448,1769644239346,-600.0,0.00014221,2]
[403901449,1769644239356,-1000.0,0.00014247,2]
[403901450,1769644239365,-500.0,0.00014247,2]
[403901451,1769644239374,-1000.0,0.00014247,2]
[403901452,1769644239383,-1500.0,0.00014368,2]
[403901453,1769644239392,-1500.0,0.00014368,2]
[403901454,1769644239401,-1500.0,0.00014368,2]
[403901455,1769644239410,-500.0,0.00014383,2]
[403901456,1769644239419,-500.0,0.00014383,2]
[403901457,1769644239428,-500.0,0.00014383,2]
[403901458,1769644239437,-253.14041224,0.00014383,2]
[403901459,1769644239446,-500.0,0.00014383,2]
[403901460,1769644239455,-500.0,0.00014383,2]
[403901461,1769644239464,-500.0,0.00014383,2]
[403901462,1769644239473,-500.0,0.00014383,2]
[403901463,1769644239483,-500.0,0.0001452,2]
[403901464,1769644239492,-600.0,0.0001452,2]
[403901465,1769644239501,-500.0,0.0001452,2]
[403901466,1769644239510,-500.0,0.0001452,2]
[403901467,1769644239519,-500.0,0.0001452,2]
[403901468,1769644239528,-500.0,0.0001452,2]
[403901469,1769644239537,-500.0,0.0001452,2]
[403901470,1769644239550,-500.0,0.00014657,2]
[403901471,1769644239559,-500.0,0.00014657,2]
[403901472,1769644239568,-500.0,0.00014657,2]
[403901473,1769644239578,-500.0,0.00014657,2]
[403901474,1769644239587,-163.75099845,0.00014657,2]
[403901475,1769644239596,-418.34852113,0.00014657,2]
[403901476,1769644239605,-500.0,0.00014657,2]
[403901477,1769644239616,-631.52046212,0.0001468,2]
[403901478,1769644239625,-339.65547154,0.00014697,2]
[403901479,1769644239634,-693.63223956,0.00014768,2]
[403901480,1769644239643,-447.0,0.00014794,2]
[403901481,1769644239652,-454.63175359,0.00014795,2]
[403901482,1769644239661,-500.0,0.00014795,2]
[403901483,1769644239670,-1007.06964924,0.00014916,2]
[403901484,1769644239679,-2000.0,0.00014916,2]
[403901485,1769644239690,-2000.0,0.00014916,2]
[403901486,1769644239700,-823.0,0.0001498,2]
[403901487,1769644239709,-462.4231914,0.00015167,2]
[403901488,1769644239719,-10000.0,0.00015342,2]
[403901489,1769644239728,-220.87,0.00015442,2]
[403901490,1769644239738,-2500.0,0.00015464,2]
[403901491,1769644239747,-2085.83878744,0.00015464,2]
[403901492,1769644239756,-1000.0,0.00015474,2]
[403901493,1769644239766,-5038.08922706,0.0001564,2]
[403901494,1769644239775,-2702.90287346,0.00016012,2]
[403901495,1769644239784,-200.0,0.00016438,2]
[403901496,1769644239793,-500.0,0.00016438,2]
[403901497,1769644239804,-474.54159977,0.00016438,2]
[403901498,1769644239813,-150.42150351,0.00016438,2]
[403901499,1769644239822,-164.57351573,0.00016438,2]
[403901500,1769644239831,-1152.0,0.00016456,2]
[403901501,1769644239840,-160.0,0.00016466,2]
[403901502,1769644239849,-1041.66666667,0.00016466,2]
[403901503,1769644239858,-160.0,0.00016466,2]
[403901504,1769644239867,-200.0,0.00016473,2]
[403901505,1769644239876,-3816.2657005,0.00016555,2]
[403901506,1769644239885,-1000.0,0.00017022,2]
[403901507,1769644239895,-244.0,0.00017022,2]
[403901508,1769644239904,-286.05722388,0.00017151,3]
[403901509,1769644239913,-523.62626085,0.00017167,2]
[403901510,1769644239922,-150.12313849,0.00017808,2]
[403901511,1769644239931,-281.81382901,0.00017842,2]
[403901512,1769644239940,-631.52046212,0.00018061,2]
[403901513,1769644239950,-1613.0,0.00018078,2]
[403901514,1769644239960,-170.0,0.00018247,3]
[403901515,1769644239969,-1000.0,0.00018724,2]
[403901516,1769644239978,-492.0,0.00018724,2]
[403901517,1769644239987,-303.10001603,0.000189,2]
[403901519,1769644239996,-303.10001603,0.00019089,2]
[403901520,1769644240005,-584.8293303,0.00019167,2]
[403901522,1769644240015,-508.0614,0.00019178,2]
[403901524,1769644240024,-508.0614,0.00019178,2]
[403901525,1769644240033,-508.0614,0.00019178,2]
[403901526,1769644240043,-508.0614,0.00019178,2]
[403901527,1769644240052,-3816.2657005,0.00019183,2]
[403901529,1769644240062,-1459.38,0.000192,2]
[403901530,1769644240071,-161.04,0.000192,2]
[403901531,1769644240080,-172.01,0.000192,2]
[403901532,1769644240089,-6249.64,0.000192,2]
[403901533,1769644240098,-168.1,0.000192,2]
[403901534,1769644240107,-298.49895742,0.00019278,2]
[403901535,1769644240117,-172.0,0.00019342,3]
[403901536,1769644240126,-508.0614,0.00019589,3]
[403901537,1769644240136,-508.0614,0.00019589,3]
[403901538,1769644240145,-508.0614,0.00019589,3]
[403901539,1769644240154,-295.1286,0.00019589,3]
[403901540,1769644240163,-1903.0,0.0001986,2]
[403901541,1769644240172,-508.0614,0.00020411,5]
[403901542,1769644240181,-508.0614,0.00020411,5]
[403901544,1769644240191,-508.0614,0.00020411,5]
[403901545,1769644240202,-173.0,0.00020438,3]
[403901546,1769644240211,-1000.0,0.00020596,2]
[403901547,1769644240220,-791.0,0.00020596,2]
[403901548,1769644240230,-646.03239975,0.00021167,2]
[403901550,1769644240239,-631.52046212,0.00021441,2]
[403901551,1769644240248,-174.0,0.00021534,5]
[403901552,1769644240257,-3816.2657005,0.00021811,2]
[403901554,1769644240266,-176.0,0.0002263,7]
[403901556,1769644240276,-1000.0,0.00022656,10]
[403901557,1769644240288,-1000.0,0.00022656,10]
[403901558,1769644240298,-293.17,0.000227,7]
[403901559,1769644240308,-6249.64,0.000227,2]
[403901560,1769644240317,-320.0,0.00023092,2]
[403901561,1769644240327,-707.2354692,0.00023167,2]
[403901562,1769644240337,-370.0,0.00023335,2]
[403901563,1769644240347,-176.29,0.00023473,2]
[403901564,1769644240356,-427.0,0.00023543,2]
[403901565,1769644240365,-177.0,0.00023726,11]
[403901566,1769644240374,-3816.2657005,0.00024438,2]
[403901567,1769644240383,-380.0,0.00024658,2]
[403901568,1769644240392,-4905.103121,0.00024658,30]
[403901569,1769644240406,-500.0,0.00024658,2]
[403901570,1769644240415,-500.0,0.00024795,2]
[403901571,1769644240427,-631.52046212,0.00024821,2]
[403901572,1769644240435,-178.0,0.00024822,14]
[403901573,1769644240445,-161.04,0.000249,7]
[403901574,1769644240455,-561018.259453,0.000249,2]
[403901575,1769644240464,-1000.0,0.00024921,10]
[403901576,1769644240473,-1000.0,0.00024921,10]
[403901577,1769644240481,-579.0,0.00024921,10]
[403901578,1769644240490,-500.0,0.00024932,2]
[403901579,1769644240499,-605.0,0.00025069,2]
[403901580,1769644240510,-768.43853865,0.00025167,2]
[403901581,1769644240519,-350.0,0.00025205,2]
[403901582,1769644240528,-1459.38,0.000253,14]
[403901583,1769644240538,-204.22,0.00025847,2]
[403901584,1769644240551,-180.0,0.00025918,18]
[403901585,1769644240560,-1401.458034,0.00026631,30]
[403901586,1769644240569,-202.0,0.00027014,22]
[403901587,1769644240578,-3816.2657005,0.00027066,2]
[403901588,1769644240589,-176.29,0.00027087,2]
[403901589,1769644240601,-829.6416081,0.00027167,2]
[403901590,1769644240612,-1731.50994973,0.00027334,2]
[403901591,1769644240624,-1957.856,0.00027334,2]
[403901592,1769644240634,-2030.296672,0.00027389,2]
[403901593,1769644240644,-157.1173049,0.00027397,2]
[403901594,1769644240654,-1000.0,0.00027413,30]
[403901595,1769644240663,-1000.0,0.00027413,30]
[403901596,1769644240672,-1000.0,0.00027413,30]
[403901597,1769644240681,-2105.41764886,0.00027444,2]
[403901598,1769644240691,-2183.31810187,0.00027499,2]
[403901599,1769644240700,-6249.64,0.000275,2]
[403901600,1769644240709,-1041.66666667,0.000275,30]
[403901601,1769644240719,-2264.10087164,0.00027554,2]
[403901602,1769644240728,-1640.76178868,0.00027609,2]
[403901603,1769644240737,-184.95386914,0.00027664,5]
[403901604,1769644240747,-188.09858345,0.00027664,5]
[403901605,1769644240757,-157.26127169,0.00027664,5]
[403901606,1769644240766,-250.0,0.00027945,5]
[403901607,1769644240778,-250.0,0.00027945,5]
[403901608,1769644240787,-293.17,0.00028,7]
[403901609,1769644240796,-1071.528267,0.00028,5]
[403901610,1769644240806,-1021.0,0.00028,2]
[403901611,1769644240816,-203.0,0.0002811,27]
[403901612,1769644240825,-160.0,0.0002838,3]
[403901613,1769644240835,-168.0,0.00028468,2]
[403901614,1769644240844,-350.0,0.00028493,5]
[403901615,1769644240853,-350.0,0.00028493,5]
[403901616,1769644240862,-1000.0,0.000285,5]
[403901617,1769644240871,-184.95386914,0.0002852,5]
[403901618,1769644240880,-260.0,0.00028737,2]
[403901619,1769644240889,-264.0,0.00028967,2]
[403901620,1769644240898,-1000.0,0.00029,5]
[403901621,1769644240907,-1021.0,0.00029,2]
[403901622,1769644240916,-168.0,0.00029005,2]
[403901623,1769644240925,-450.0,0.00029041,5]
[403901624,1769644240934,-450.0,0.00029041,5]
[403901625,1769644240943,-184.95386914,0.0002913,5]
[403901626,1769644240952,-500.0,0.00029164,7]
[403901627,1769644240961,-890.84467755,0.00029167,2]
[403901628,1769644240971,-178.0,0.00029205,33]
[403901629,1769644240980,-262.0,0.00029368,7]
[403901630,1769644240989,-262.0,0.00029372,2]
[403901631,1769644240999,-161.04,0.000294,7]
[403901632,1769644241009,-400.0,0.00029428,3]
[403901633,1769644241019,-1000.0,0.00029436,5]
[403901634,1769644241029,-1000.0,0.000295,5]
[403901635,1769644241039,-236.57189686,0.00029589,5]
[403901636,1769644241048,-550.0,0.00029589,5]
[403901637,1769644241057,-400.0,0.00029629,3]
[403901638,1769644241066,-161.0,0.00029687,3]
[403901639,1769644241075,-3816.2657005,0.00029694,2]
[403901640,1769644241084,-260.0,0.00029707,2]
[403901641,1769644241094,-400.0,0.00029937,3]
[403901642,1769644241103,-160.29039837,0.00029945,30]
[403901643,1769644241112,-730.0,0.00029949,3]
[403901644,1769644241121,-260.0,0.00029957,2]
[403901645,1769644241131,-5000.0,0.00029962,23]
[403901646,1769644241139,-1000.0,0.0003,5]
[403901647,1769644241148,-1000.0,0.0003,14]
[403901648,1769644241157,-167.0,0.0003,14]
[403901649,1769644241166,-1021.0,0.0003,7]
[403901650,1769644241176,-190.0,0.0003,14]
[403901651,1769644241185,-1000.0,0.0003,14]
[403901652,1769644241195,-178.5494496,0.0003,14]
[403901653,1769644241204,-151.0,0.0003,14]
[403901654,1769644241215,-442.0195791,0.00030027,30]
[403901655,1769644241225,-184.95386914,0.00030031,10]
[403901656,1769644241235,-1000.0,0.00030065,14]
[403901657,1769644241244,-500.0,0.0003009,5]
[403901658,1769644241255,-234.10361378,0.0003009,5]
[403901659,1769644241264,-500.0,0.0003009,5]
[403901660,1769644241273,-500.0,0.0003009,5]
[403901661,1769644241284,-500.0,0.0003009,30]
[403901662,1769644241294,-500.0,0.0003009,5]
[403901663,1769644241305,-500.0,0.0003009,5]
[403901664,1769644241315,-500.0,0.0003009,5]
[403901665,1769644241324,-440.75265204,0.0003009,5]
[403901666,1769644241336,-500.0,0.0003009,5]
[403901667,1769644241347,-500.0,0.0003009,5]
[403901668,1769644241357,-507.14705733,0.0003009,5]
[403901669,1769644241366,-151.0,0.00030092,14]
[403901670,1769644241377,-3183.59511754,0.000301,2]
[403901671,1769644241387,-1000.0,0.00030129,14]
[403901672,1769644241510,-160.29039837,0.00030137,30]
[403901673,1769644241521,-175.20269643,0.00030137,2]
[403901674,1769644241530,-650.0,0.00030137,5]
[403901675,1769644241540,-623.06341051,0.00030137,120]
[403901676,1769644241552,-1000.0,0.00030155,30]
[403901677,1769644241561,-1000.0,0.00030155,30]
[403901678,1769644241570,-1000.0,0.00030155,30]
[403901679,1769644241579,-715.0,0.00030155,30]
[403901680,1769644241588,-1098.43771607,0.00030155,2]
[403901681,1769644241597,-151.0,0.00030183,14]
[403901682,1769644241606,-1000.0,0.00030194,14]
[403901683,1769644241617,-6249.64,0.000302,2]
[403901684,1769644241626,-1000.0,0.00030258,14]
[403901685,1769644241635,-161.0,0.00030269,3]
[403901686,1769644241645,-1571.07898804,0.00030272,2]
[403901687,1769644241655,-3531.39279537,0.00030272,2]
[403901688,1769644241664,-174.63415213,0.00030272,2]
[403901689,1769644241674,-698.5366085,0.00030272,2]
[403901690,1769644241683,-1571.70736913,0.00030272,2]
[403901691,1769644241692,-2794.14643401,0.00030272,2]
[403901692,1769644241701,-4365.85380314,0.00030272,2]
[403901693,1769644241710,-6286.82947652,0.00030272,2]
[403901694,1769644241719,-8557.07345415,0.00030272,2]
[403901695,1769644241731,-11176.58573603,0.00030272,2]
[403901696,1769644241740,-367.94724671,0.00030272,2]
[403901697,1769644241749,-1471.78898683,0.00030272,2]
[403901698,1769644241759,-3311.52522036,0.00030272,2]
[403901699,1769644241768,-5887.15594731,0.00030272,2]
[403901700,1769644241778,-9198.68116767,0.00030272,2]
[403901701,1769644241787,-392.76974701,0.00030272,2]
[403901702,1769644241797,-603.9975254,0.00030274,30]
[403901703,1769644241808,-603.9975254,0.00030274,30]
[403901704,1769644241817,-185.4228781,0.00030274,30]
[403901705,1769644241828,-603.9975254,0.00030274,30]
[403901706,1769644241837,-185.4228781,0.00030274,30]
[403901707,1769644241846,-603.9975254,0.00030274,30]
[403901708,1769644241856,-185.4228781,0.00030274,30]
[403901709,1769644241865,-603.9975254,0.00030274,30]
[403901710,1769644241874,-151.0,0.00030275,14]
[403901711,1769644241883,-621554.77,0.000303,6]
[403901712,1769644241892,-73017.81,0.000303,6]
[403901713,1769644241901,-155.0,0.00030301,39]
[403901714,1769644241910,-800.0,0.00030314,2]
[403901715,1769644241919,-1000.0,0.00030323,14]
[403901716,1769644241928,-160.29039837,0.00030329,30]
[403901717,1769644241938,-800.0,0.00030359,2]
[403901718,1769644241947,-1000.0,0.00030366,14]
[403901719,1769644241957,-151.0,0.00030366,14]
[403901720,1769644241966,-800.0,0.00030386,2]
[403901721,1769644241975,-1000.0,0.00030388,14]
[403901722,1769644241985,-190.0,0.00030411,14]
[403901723,1769644241994,-400.0,0.00030426,3]
[403901724,1769644242004,-1000.0,0.00030452,14]
[403901725,1769644242013,-151.0,0.00030457,14]
[403901726,1769644242023,-800.0,0.00030467,2]
[403901727,1769644242032,-378.0985263,0.00030493,30]
[403901728,1769644242042,-1459.38,0.000305,14]
[403901729,1769644242051,-1000.0,0.000305,5]
[403901730,1769644242060,-1000.0,0.00030517,14]
[403901731,1769644242070,-160.29039837,0.00030521,30]
[403901732,1769644242079,-151.0,0.00030549,14]
[403901733,1769644242088,-800.0,0.00030579,2]
[403901734,1769644242098,-1000.0,0.00030581,14]
[403901735,1769644242107,-800.0,0.00030589,2]
[403901736,1769644242118,-21590.59692259,0.000306,2]
[403901737,1769644242127,-160.0,0.00030613,4]
[403901738,1769644242137,-153.0,0.0003063,30]
[403901739,1769644242146,-185.4228781,0.0003063,30]
[403901740,1769644242157,-153.0,0.0003063,30]
[403901741,1769644242166,-185.4228781,0.0003063,30]
[403901742,1769644242175,-185.4228781,0.0003063,30]
[403901743,1769644242185,-153.0,0.0003063,30]
[403901744,1769644242195,-184.4226024,0.0003063,30]
[403901745,1769644242205,-153.0,0.0003063,30]
[403901746,1769644242215,-153.0,0.0003063,30]
[403901747,1769644242224,-151.0,0.00030641,14]
[403901748,1769644242233,-1000.0,0.00030646,14]
[403901749,1769644242243,-800.0,0.00030648,2]
[403901750,1769644242252,-800.0,0.0003066,2]
[403901751,1769644242261,-750.0,0.00030685,5]
[403901752,1769644242271,-158656.38583447,0.000307,6]
[403901753,1769644242280,-800.0,0.00030702,2]
[403901754,1769644242289,-1000.0,0.0003071,14]
[403901755,1769644242299,-1000.0,0.00030732,14]
[403901756,1769644242308,-151.0,0.00030732,14]
[403901757,1769644242318,-630.0,0.00030739,2]
[403901758,1769644242327,-1369.0,0.00030739,2]
[403901759,1769644242336,-558.797,0.00030739,2]
[403901760,1769644242345,-418.0,0.00030739,2]
[403901761,1769644242354,-716.0,0.00030739,2]
[403901762,1769644242364,-219.52815425,0.0003074,30]
[403901763,1769644242373,-160.29039837,0.0003074,30]
[403901764,1769644242382,-800.0,0.0003074,2]
[403901765,1769644242391,-260.0,0.00030771,7]
[403901766,1769644242400,-176.29,0.00030774,2]
[403901767,1769644242409,-1000.0,0.00030775,14]
[403901768,1769644242418,-700.729017,0.00030822,30]
[403901769,1769644242427,-151.0,0.00030824,14]
[403901770,1769644242436,-1000.0,0.0003084,14]
[403901771,1769644242445,-206.36876951,0.00030848,10]
[403901772,1769644242453,-160.09522763,0.00030848,10]
[403901773,1769644242462,-1033889.7027171,0.00030849,30]
[403901774,1769644242476,-2703.84517199,0.00030849,30]
[403901775,1769644242487,-21949.52539037,0.00030849,30]
[403901799,1769644246792,-185.4228781,0.00030274,30]
[403901800,1769644246802,-231.599018,0.00030274,30]
[403901801,1769644246812,-180.381,0.00030739,2]
[403901802,1769644246821,-5648.49107728,0.00030849,30]
[403901804,1769644246832,-1452.85050576,0.00030849,30]
[403901805,1769644246843,-7386.93076629,0.00030849,30]
[403901807,1769644246855,-337.2,0.00030849,30]
[403901812,1769644505364,217.6400536,0.0001033,2]
[403901813,1769644820847,-170.8554559,0.00011199,2]
[403901817,1769644986515,4778.9780774,0.0001022,2]
[403901820,1769645280237,199.96,3.8e-06,2]
[403901862,1769645432437,-151.332,0.00011018,2]
[403901864,1769645432448,-575.0,0.00011018,2]
[403901866,1769645432458,-339.63035117,0.00011093,2]
[403901868,1769645432468,-41940.63845731,0.00011136,2]
[403901870,1769645432481,-4641.47101605,0.00011136,2]
[403901873,1769645432504,-1326.0,0.00011136,2]
[403902007,1769645438593,-1672091.89052664,0.00011136,2]
[403902008,1769645438603,-300.0,0.00011199,2]
[403902009,1769645438612,-384.11,0.000112,2]
[403902010,1769645438621,-151.0,0.000112,2]
[403902011,1769645438630,-151.0,0.000112,2]
[403902012,1769645438639,-151.0,0.000112,2]
[403902013,1769645438649,-151.0,0.000112,2]
[403902014,1769645438658,-151.0,0.000112,2]
[403902015,1769645438667,-151.0,0.000112,2]
[403902016,1769645438676,-151.0,0.000112,2]
[403902017,1769645438685,-151.0,0.000112,2]
[403902018,1769645438695,-151.0,0.000112,2]
[403902019,1769645438704,-151.0,0.000112,2]
[403902020,1769645438713,-631.52046214,0.00011223,2]
[403902021,1769645438723,-490.34015839,0.00011236,2]
[403902022,1769645438732,-265.46975298,0.00011236,2]
[403902023,1769645438742,-500.0,0.00011236,2]
[403902024,1769645438752,-500.0,0.00011236,2]
[403902025,1769645438761,-500.0,0.00011236,2]
[403902026,1769645438770,-500.0,0.00011236,2]
[403902027,1769645438779,-500.0,0.00011236,2]
[403902028,1769645438788,-500.0,0.00011236,2]
[403902029,1769645438798,-500.0,0.00011236,2]
[403902030,1769645438807,-500.0,0.00011236,2]
[403902031,1769645438816,-606.24366731,0.00011236,2]
[403902032,1769645438825,-500.0,0.00011236,2]
[403902033,1769645438835,-500.0,0.00011236,2]
[403902034,1769645438844,-500.0,0.00011236,2]
[403902035,1769645438854,-500.0,0.00011236,2]
[403902036,1769645438863,-500.0,0.00011236,2]
[403902037,1769645438872,-500.0,0.00011236,2]
[403902038,1769645438881,-500.0,0.00011236,2]
[403902039,1769645438891,-500.0,0.00011236,2]
[403902040,1769645438900,-500.0,0.00011236,2]
[403902041,1769645438908,-500.0,0.00011236,2]
[403902042,1769645438923,-500.0,0.00011236,2]
[403902043,1769645438939,-500.0,0.00011236,2]
[403902044,1769645438949,-500.0,0.00011236,2]
[403902045,1769645438959,-500.0,0.00011236,2]
[403902046,1769645438969,-500.0,0.00011236,2]
[403902047,1769645438979,-500.0,0.00011236,2]
[403902048,1769645438989,-500.0,0.00011236,2]
[403902049,1769645439000,-500.0,0.00011236,2]
[403902050,1769645439012,-500.0,0.00011236,2]
[403902051,1769645439021,-500.0,0.00011236,2]
[403902052,1769645439032,-500.0,0.00011236,2]
[403902053,1769645439042,-500.0,0.00011236,2]
[403902054,1769645439052,-510.87375434,0.00011236,2]
[403902055,1769645439062,-500.0,0.00011236,2]
[403902056,1769645439071,-500.0,0.00011236,2]
[403902057,1769645439081,-500.0,0.00011236,2]
[403902058,1769645439091,-500.0,0.00011236,2]
[403902059,1769645439100,-500.0,0.00011236,2]
[403902060,1769645439110,-500.0,0.00011236,2]
[403902061,1769645439119,-500.0,0.00011236,2]
[403902062,1769645439129,-500.0,0.00011236,2]
[403902063,1769645439139,-500.0,0.00011236,2]
[403902064,1769645439148,-500.0,0.00011236,2]
[403902065,1769645439159,-500.0,0.00011236,2]
[403902066,1769645439169,-500.0,0.00011236,2]
[403902067,1769645439179,-246.0415424,0.00011236,2]
[403902068,1769645439189,-500.0,0.00011236,2]
[403902069,1769645439198,-500.0,0.00011236,2]
[403902070,1769645439208,-500.0,0.00011236,2]
[403902071,1769645439217,-500.0,0.00011236,2]
[403902072,1769645439227,-500.0,0.00011236,2]
[403902073,1769645439238,-500.0,0.00011236,2]
[403902074,1769645439248,-500.0,0.00011236,2]
[403902075,1769645439257,-500.0,0.00011236,2]
[403902076,1769645439267,-500.0,0.00011236,2]
[403902077,1769645439277,-500.0,0.00011236,2]
[403902078,1769645439287,-500.0,0.00011236,2]
[403902079,1769645439297,-500.0,0.00011236,2]
[403902080,1769645439307,-500.0,0.00011236,2]
[403902081,1769645439317,-500.0,0.00011236,2]
[403902082,1769645439327,-500.0,0.00011236,2]
[403902083,1769645439337,-500.0,0.00011236,2]
[403902084,1769645439347,-500.0,0.00011236,2]
[403902085,1769645439357,-500.0,0.00011236,2]
[403902086,1769645439366,-500.0,0.00011236,2]
[403902087,1769645439376,-500.0,0.00011236,2]
[403902088,1769645439386,-500.0,0.00011236,2]
[403902089,1769645439396,-500.0,0.00011236,2]
[403902090,1769645439406,-500.0,0.00011236,2]
[403902091,1769645439415,-500.0,0.00011236,2]
[403902092,1769645439425,-500.0,0.00011236,2]
[403902093,1769645439435,-500.0,0.00011236,2]
[403902094,1769645439445,-375.69386623,0.00011236,2]
[403902095,1769645439454,-500.0,0.00011236,2]
[403902096,1769645439464,-500.0,0.00011236,2]
[403902097,1769645439473,-500.0,0.00011236,2]
[403902098,1769645439483,-279.59217605,0.00011236,2]
[403902099,1769645439492,-500.0,0.00011236,2]
[403902100,1769645439503,-500.0,0.00011236,2]
[403902101,1769645439512,-500.0,0.00011236,2]
[403902102,1769645439524,-500.0,0.00011236,2]
[403902103,1769645439534,-500.0,0.00011236,2]
[403902104,1769645439543,-500.0,0.00011236,2]
[403902105,1769645439553,-500.0,0.00011236,2]
[403902106,1769645439562,-193.23811087,0.00011236,2]
[403902107,1769645439573,-500.0,0.00011236,2]
[403902108,1769645439584,-500.0,0.00011236,2]
[403902109,1769645439596,-450.0,0.00011236,2]
[403902110,1769645439607,-500.0,0.00011236,2]
[403902111,1769645439616,-500.0,0.00011236,2]
[403902112,1769645439626,-500.0,0.00011236,2]
[403902113,1769645439635,-500.0,0.00011236,2]
[403902114,1769645439645,-500.0,0.00011236,2]
[403902115,1769645439654,-3816.26570052,0.00011323,2]
[403902116,1769645439663,-300.0,0.00011423,2]
[403902117,1769645439672,-300.0,0.00011423,2]
[403902118,1769645439684,-300.0,0.00011423,2]
[403902119,1769645439694,-300.0,0.00011423,2]
[403902120,1769645439705,-300.0,0.00011423,2]
[403902121,1769645439714,-300.0,0.00011423,2]
[403902122,1769645439723,-300.0,0.00011423,2]
[403902123,1769645439732,-300.0,0.00011423,2]
[403902124,1769645439742,-300.0,0.00011423,2]
[403902125,1769645439751,-300.0,0.00011423,2]
[403902126,1769645439761,-300.0,0.00011423,2]
[403902127,1769645439771,-300.0,0.00011423,2]
[403902128,1769645439781,-300.0,0.00011423,2]
[403902129,1769645439790,-300.0,0.00011423,2]